fUSD/lending_fUSD_20250206
["ID","MTS","AMOUNT","RATE_DAILY","PERIOD"]
[351964908,1738863054264,-397.98519691,0.0001753,2]
[351964909,1738863054273,-500.0,0.0001753,2]
[351964910,1738863054283,-500.0,0.0001753,2]
[351964911,1738863054293,-500.0,0.0001753,2]
[351964912,1738863054302,-500.0,0.0001753,2]
[351964913,1738863054312,-500.0,0.0001753,2]
[351964914,1738863054321,-500.0,0.0001753,2]
[351964915,1738863054330,-500.0,0.0001753,2]
[351964916,1738863054340,-500.0,0.0001753,2]
[351964917,1738863054349,-500.0,0.0001753,2]
[351964918,1738863054359,-500.0,0.0001753,2]
[351964919,1738863054368,-500.0,0.0001753,2]
[351964920,1738863054378,-500.0,0.0001753,2]
[351964921,1738863054387,-500.0,0.0001753,2]
[351964922,1738863054397,-500.0,0.0001753,2]
[351964923,1738863054406,-500.0,0.0001753,2]
[351964924,1738863054416,-500.0,0.0001753,2]
[351964925,1738863054426,-500.0,0.0001753,2]
[351964926,1738863054435,-500.0,0.0001753,2]
[351964927,1738863054444,-500.0,0.0001753,2]
[351964928,1738863054454,-504.41,0.0001753,2]
[351964929,1738863054463,-500.0,0.0001753,2]
[351964930,1738863054472,-347.27685625,0.0001753,2]
[351964931,1738863054482,-500.0,0.0001753,2]
[351964932,1738863054491,-500.0,0.0001753,2]
[351964933,1738863054500,-713.7,0.0001753,2]
[351964934,1738863054510,-500.0,0.0001753,2]
[351964935,1738863054519,-500.0,0.0001753,2]
[351964936,1738863054528,-500.0,0.0001753,2]
[351964937,1738863054538,-565.59,0.0001753,2]
[351964938,1738863054547,-500.0,0.0001753,2]
[351964939,1738863054556,-500.0,0.0001753,2]
[351964940,1738863054565,-500.0,0.0001753,2]
[351964941,1738863054574,-500.0,0.0001753,2]
[351964942,1738863054584,-292.07327745,0.0001753,2]
[351964943,1738863054593,-500.0,0.0001753,2]
[351964944,1738863054603,-500.0,0.0001753,2]
[351964945,1738863054614,-500.0,0.0001753,2]
[351964946,1738863054634,-500.0,0.0001753,2]
[351964947,1738863054652,-654.86,0.0001753,2]
[351964948,1738863054661,-500.0,0.0001753,2]
[351964949,1738863054670,-500.0,0.0001753,2]
[351964950,1738863054680,-500.0,0.0001753,2]
[351964951,1738863054690,-829.31,0.0001753,2]
[351964952,1738863054699,-500.0,0.0001753,2]
[351964953,1738863054709,-680.61,0.0001753,2]
[351964954,1738863054719,-500.0,0.0001753,2]
[351964955,1738863054729,-500.0,0.0001753,2]
[351964956,1738863054739,-500.0,0.0001753,2]
[351964957,1738863054748,-500.0,0.0001753,2]
[351964958,1738863054758,-500.0,0.0001753,2]
[351964959,1738863054768,-500.0,0.0001753,2]
[351964960,1738863054778,-777.57,0.0001753,2]
[351964961,1738863054788,-500.0,0.0001753,2]
[351964962,1738863054798,-500.0,0.0001753,2]
[351964963,1738863054808,-547.02,0.0001753,2]
[351964964,1738863054817,-539.78,0.0001753,2]
[351964965,1738863054827,-500.0,0.0001753,2]
[351964966,1738863054837,-859.53,0.0001753,2]
[351964967,1738863054846,-500.0,0.0001753,2]
[351964968,1738863054856,-500.0,0.0001753,2]
[351964969,1738863054870,-500.0,0.0001753,2]
[351964970,1738863054880,-558.78,0.0001753,2]
[351964971,1738863054889,-500.0,0.0001753,2]
[351964972,1738863054899,-769.27,0.0001753,2]
[351964973,1738863054908,-872.32,0.0001753,2]
[351964974,1738863054917,-899.31,0.0001753,2]
[351964975,1738863054927,-500.0,0.0001753,2]
[351964976,1738863054936,-1378.07,0.0001753,2]
[351964977,1738863054945,-1185.73,0.0001753,2]
[351964978,1738863054955,-1028.89,0.0001753,2]
[351964979,1738863054963,-523.27,0.0001753,2]
[351964980,1738863054973,-1129.64,0.0001753,2]
[351964981,1738863054983,-1020.65,0.0001753,2]
[351964982,1738863054993,-500.0,0.0001753,2]
[351964983,1738863055003,-1987.68,0.0001753,2]
[351964984,1738863055013,-2327.83,0.0001753,2]
[351964985,1738863055023,-500.0,0.0001753,2]
[351964986,1738863055032,-500.0,0.0001753,2]
[351964987,1738863055041,-1130.75,0.0001753,2]
[351964988,1738863055050,-500.0,0.0001753,2]
[351964989,1738863055059,-842.09,0.0001753,2]
[351964990,1738863055068,-1203.95,0.0001753,2]
[351964991,1738863055077,-500.0,0.0001753,2]
[351964992,1738863055087,-500.0,0.0001753,2]
[351964993,1738863055098,-856.65,0.0001753,2]
[351964994,1738863055107,-500.0,0.0001753,2]
[351964995,1738863055121,-1046.89,0.0001753,2]
[351964996,1738863055131,-500.0,0.0001753,2]
[351964997,1738863055140,-500.0,0.0001753,2]
[351964998,1738863055149,-500.0,0.0001753,2]
[351964999,1738863055159,-500.0,0.0001753,2]
[351965000,1738863055169,-300.0,0.0001753,2]
[351965001,1738863055179,-923.35,0.0001753,2]
[351965002,1738863055188,-1215.8,0.0001753,2]
[351965003,1738863055197,-500.0,0.0001753,2]
[351965004,1738863055206,-500.0,0.0001753,2]
[351965005,1738863055216,-500.0,0.0001753,2]
[351965006,1738863055225,-818.55,0.0001753,2]
[351965007,1738863055234,-500.0,0.0001753,2]
[351965008,1738863055243,-500.0,0.00017531,2]
[351965009,1738863055253,-500.0,0.00017531,2]
[351965010,1738863055262,-500.0,0.00017531,2]
[351965011,1738863055272,-500.0,0.00017531,2]
[351965012,1738863055282,-500.0,0.00017531,2]
[351965013,1738863055291,-500.0,0.00017531,2]
[351965014,1738863055300,-500.0,0.00017531,2]
[351965015,1738863055309,-500.0,0.00017531,2]
[351965016,1738863055319,-600.09,0.00017531,2]
[351965017,1738863055329,-500.0,0.00017531,2]
[351965018,1738863055339,-633.96,0.00017531,2]
[351965019,1738863055348,-500.0,0.00017531,2]
[351965020,1738863055358,-500.0,0.00017531,2]
[351965021,1738863055369,-500.0,0.00017531,2]
[351965022,1738863055378,-500.0,0.00017531,2]
[351965023,1738863055387,-500.0,0.00017531,2]
[351965024,1738863055397,-500.0,0.00017531,2]
[351965025,1738863055406,-526.53,0.00017531,2]
[351965026,1738863055416,-500.0,0.00017531,2]
[351965027,1738863055425,-512.89,0.00017531,2]
[351965028,1738863055435,-500.0,0.00017531,2]
[351965029,1738863055444,-500.0,0.00017531,2]
[351965030,1738863055453,-500.0,0.00017531,2]
[351965031,1738863055462,-500.0,0.00017531,2]
[351965032,1738863055472,-500.0,0.00017531,2]
[351965033,1738863055482,-530.85,0.00017531,2]
[351965034,1738863055491,-617.60663751,0.00017531,2]
[351965035,1738863055500,-500.0,0.00017531,2]
[351965036,1738863055509,-500.0,0.00017531,2]
[351965037,1738863055519,-500.0,0.00017531,2]
[351965038,1738863055529,-199.79205649,0.00017531,2]
[351965039,1738863055538,-500.0,0.00017531,2]
[351965040,1738863055547,-500.0,0.00017531,2]
[351965041,1738863055556,-500.0,0.00017531,2]
[351965042,1738863055566,-617.58,0.00017531,2]
[351965043,1738863055575,-500.0,0.00017531,2]
[351965044,1738863055585,-500.0,0.00017531,2]
[351965045,1738863055595,-500.0,0.00017531,2]
[351965046,1738863055605,-500.0,0.00017531,2]
[351965047,1738863055623,-500.0,0.00017531,2]
[351965048,1738863055633,-648.71,0.00017531,2]
[351965049,1738863055644,-500.0,0.00017531,2]
[351965050,1738863055653,-500.0,0.00017531,2]
[351965051,1738863055666,-500.0,0.00017531,2]
[351965052,1738863055676,-500.0,0.00017531,2]
[351965053,1738863055687,-500.0,0.00017531,2]
[351965054,1738863055697,-500.0,0.00017531,2]
[351965055,1738863055710,-668.12,0.00017531,2]
[351965056,1738863055723,-500.0,0.00017531,2]
[351965057,1738863055735,-500.0,0.00017531,2]
[351965058,1738863055744,-500.0,0.00017531,2]
[351965059,1738863055753,-1015.55,0.00017531,2]
[351965060,1738863055763,-1397.82,0.00017531,2]
[351965061,1738863055773,-500.0,0.00017531,2]
[351965062,1738863055783,-500.0,0.00017531,2]
[351965063,1738863055792,-623.0,0.00017531,2]
[351965064,1738863055802,-800.48,0.00017531,2]
[351965065,1738863055812,-1000.0,0.00017531,2]
[351965066,1738863055822,-2502.3,0.00017531,2]
[351965067,1738863055832,-500.0,0.00017531,2]
[351965068,1738863055842,-500.0,0.00017531,2]
[351965069,1738863055852,-1107.32,0.00017531,2]
[351965070,1738863055865,-500.0,0.00017531,2]
[351965071,1738863055875,-908.31,0.00017531,2]
[351965072,1738863055885,-500.0,0.00017531,2]
[351965073,1738863055895,-500.0,0.00017531,2]
[351965074,1738863055906,-685.99,0.00017531,2]
[351965075,1738863055917,-974.93,0.00017531,2]
[351965076,1738863055928,-790.28,0.00017531,2]
[351965077,1738863055939,-500.0,0.00017531,2]
[351965078,1738863055949,-500.0,0.00017531,2]
[351965079,1738863055959,-749.14,0.00017531,2]
[351965080,1738863055969,-855.33,0.00017531,2]
[351965081,1738863055979,-658.79,0.00017531,2]
[351965082,1738863055988,-500.0,0.00017531,2]
[351965083,1738863055997,-500.0,0.00017531,2]
[351965084,1738863056007,-1766.78,0.00017531,2]
[351965085,1738863056016,-500.0,0.00017531,2]
[351965086,1738863056025,-790.73,0.00017531,2]
[351965087,1738863056035,-658.83,0.00017531,2]
[351965088,1738863056044,-953.52,0.00017531,2]
[351965089,1738863056053,-1132.76,0.00017531,2]
[351965090,1738863056062,-1307.98,0.00017531,2]
[351965091,1738863056071,-1253.43,0.00017531,2]
[351965092,1738863056080,-1108.09,0.00017531,2]
[351965093,1738863056089,-1032.86,0.00017531,2]
[351965094,1738863056098,-917.63,0.00017531,2]
[351965095,1738863056107,-1207.97,0.00017531,2]
[351965096,1738863056121,-960.48,0.00017531,2]
[351965097,1738863056131,-3993.97,0.00017531,2]
[351965098,1738863056140,-1725.38,0.00017531,2]
[351965099,1738863056150,-500.0,0.00017531,2]
[351965100,1738863056160,-917.05,0.00017531,2]
[351965101,1738863056171,-1883.45,0.00017531,2]
[351965102,1738863056181,-1013.66,0.00017531,2]
[351965103,1738863056191,-1683.17,0.00017531,2]
[351965104,1738863056201,-2426.89,0.00017531,2]
[351965105,1738863056211,-1260.16,0.00017531,2]
[351965106,1738863056221,-500.0,0.00017531,2]
[351965107,1738863056231,-848.82,0.00017531,2]
[351965108,1738863056240,-500.0,0.00017531,2]
[351965109,1738863056250,-1410.47,0.00017531,2]
[351965110,1738863056260,-1050.96,0.00017531,2]
[351965111,1738863056270,-1052.82,0.00017531,2]
[351965112,1738863056279,-1171.95,0.00017531,2]
[351965113,1738863056289,-670.98,0.00017531,2]
[351965114,1738863056299,-1438.11,0.00017531,2]
[351965115,1738863056308,-1031.84,0.00017531,2]
[351965116,1738863056317,-1814.97,0.00017531,2]
[351965117,1738863056328,-500.0,0.00017532,2]
[351965118,1738863056337,-500.0,0.00017532,2]
[351965119,1738863056346,-500.0,0.00017532,2]
[351965120,1738863056355,-500.0,0.00017532,2]
[351965121,1738863056367,-500.0,0.00017532,2]
[351965122,1738863056377,-500.0,0.00017532,2]
[351965123,1738863056387,-500.0,0.00017532,2]
[351965124,1738863056397,-500.0,0.00017532,2]
[351965125,1738863056406,-484.23654809,0.00017532,2]
[351965126,1738863056415,-500.0,0.00017532,2]
[351965127,1738863056425,-500.0,0.00017532,2]
[351965128,1738863056434,-500.0,0.00017532,2]
[351965129,1738863056443,-516.68,0.00017532,2]
[351965130,1738863056453,-604.38,0.00017532,2]
[351965131,1738863056462,-500.0,0.00017532,2]
[351965132,1738863056472,-500.0,0.00017532,2]
[351965133,1738863056481,-500.0,0.00017532,2]
[351965134,1738863056491,-1153.37,0.00017532,2]
[351965135,1738863056501,-976.17,0.00017532,2]
[351965136,1738863056510,-500.0,0.00017532,2]
[351965137,1738863056520,-1304.89,0.00017532,2]
[351965138,1738863056530,-500.0,0.00017532,2]
[351965139,1738863056539,-500.0,0.00017532,2]
[351965140,1738863056549,-545.9,0.00017532,2]
[351965141,1738863056558,-500.0,0.00017532,2]
[351965142,1738863056568,-845.71,0.00017532,2]
[351965143,1738863056577,-500.0,0.00017532,2]
[351965144,1738863056587,-500.0,0.00017532,2]
[351965145,1738863056596,-500.0,0.00017532,2]
[351965146,1738863056606,-1197.36,0.00017532,2]
[351965147,1738863056617,-500.0,0.00017532,2]
[351965148,1738863056626,-500.0,0.00017532,2]
[351965149,1738863056636,-500.0,0.00017532,2]
[351965150,1738863056647,-500.0,0.00017532,2]
[351965151,1738863056658,-600.67,0.00017532,2]
[351965152,1738863056668,-500.0,0.00017532,2]
[351965153,1738863056678,-500.0,0.00017532,2]
[351965154,1738863056687,-500.0,0.00017532,2]
[351965155,1738863056696,-500.0,0.00017532,2]
[351965156,1738863056706,-500.0,0.00017532,2]
[351965157,1738863056716,-1196.11,0.00017532,2]
[351965158,1738863056726,-537.37334328,0.00017532,2]
[351965159,1738863056737,-500.0,0.00017532,2]
[351965160,1738863056747,-500.0,0.00017532,2]
[351965161,1738863056756,-973.34,0.00017532,2]
[351965162,1738863056767,-500.0,0.00017532,2]
[351965163,1738863056777,-500.0,0.00017532,2]
[351965164,1738863056786,-500.0,0.00017532,2]
[351965165,1738863056795,-1022.2,0.00017532,2]
[351965166,1738863056805,-500.0,0.00017532,2]
[351965167,1738863056815,-500.0,0.00017532,2]
[351965168,1738863056825,-1265.7,0.00017532,2]
[351965169,1738863056835,-500.0,0.00017532,2]
[351965170,1738863056844,-679.53,0.00017532,2]
[351965171,1738863056854,-500.0,0.00017532,2]
[351965172,1738863056865,-969.87,0.00017532,2]
[351965173,1738863056875,-500.0,0.00017532,2]
[351965174,1738863056885,-500.0,0.00017532,2]
[351965175,1738863056895,-500.0,0.00017532,2]
[351965176,1738863056905,-500.0,0.00017532,2]
[351965177,1738863056915,-516.44,0.00017532,2]
[351965178,1738863056925,-500.0,0.00017532,2]
[351965179,1738863056935,-500.0,0.00017532,2]
[351965180,1738863056944,-500.0,0.00017532,2]
[351965181,1738863056954,-500.0,0.00017532,2]
[351965182,1738863056964,-500.0,0.00017532,2]
[351965183,1738863056974,-715.05,0.00017532,2]
[351965184,1738863056984,-500.0,0.00017532,2]
[351965185,1738863056993,-819.78,0.00017532,2]
[351965186,1738863057003,-500.0,0.00017532,2]
[351965187,1738863057013,-500.0,0.00017532,2]
[351965188,1738863057022,-500.0,0.00017532,2]
[351965189,1738863057032,-500.0,0.00017532,2]
[351965190,1738863057041,-745.94,0.00017532,2]
[351965191,1738863057051,-491.02385999,0.00017532,2]
[351965192,1738863057061,-569.38,0.00017532,2]
[351965193,1738863057070,-620.3,0.00017532,2]
[351965194,1738863057080,-500.0,0.00017532,2]
[351965195,1738863057090,-537.91690818,0.00017532,2]
[351965196,1738863057099,-500.0,0.00017532,2]
[351965197,1738863057109,-507.85,0.00017532,2]
[351965198,1738863057121,-500.0,0.00017532,2]
[351965199,1738863057131,-854.02,0.00017532,2]
[351965200,1738863057140,-500.0,0.00017532,2]
[351965201,1738863057150,-500.0,0.00017532,2]
[351965202,1738863057160,-500.0,0.00017532,2]
[351965203,1738863057170,-500.0,0.00017532,2]
[351965204,1738863057179,-500.0,0.00017532,2]
[351965205,1738863057189,-549.95,0.00017532,2]
[351965206,1738863057199,-500.0,0.00017532,2]
[351965207,1738863057209,-500.0,0.00017532,2]
[351965208,1738863057218,-525.33,0.00017532,2]
[351965209,1738863057228,-605.42,0.00017532,2]
[351965210,1738863057237,-500.0,0.00017532,2]
[351965211,1738863057247,-502.01,0.00017532,2]
[351965212,1738863057257,-522.08737286,0.00017532,2]
[351965213,1738863057267,-500.0,0.00017532,2]
[351965214,1738863057276,-1256.7,0.00017532,2]
[351965215,1738863057286,-1238.0,0.00017532,2]
[351965216,1738863057296,-500.0,0.00017532,2]
[351965217,1738863057307,-500.0,0.00017532,2]
[351965218,1738863057317,-594.83,0.00017532,2]
[351965219,1738863057327,-1096.15,0.00017532,2]
[351965220,1738863057336,-992.98,0.00017532,2]
[351965221,1738863057346,-613.84,0.00017532,2]
[351965222,1738863057355,-3104.41,0.00017532,2]
[351965223,1738863057368,-500.0,0.00017532,2]
[351965224,1738863057377,-563.49,0.00017532,2]
[351965225,1738863057387,-500.0,0.00017532,2]
[351965226,1738863057396,-806.14,0.00017532,2]
[351965227,1738863057406,-2692.14,0.00017532,2]
[351965228,1738863057415,-500.0,0.00017532,2]
[351965229,1738863057426,-500.0,0.00017532,2]
[351965230,1738863057436,-667.5,0.00017532,2]
[351965231,1738863057446,-1077.85,0.00017532,2]
[351965232,1738863057455,-531.86,0.00017532,2]
[351965233,1738863057465,-1139.13,0.00017532,2]
[351965234,1738863057475,-518.37,0.00017532,2]
[351965235,1738863057485,-1702.83,0.00017532,2]
[351965236,1738863057494,-500.0,0.00017532,2]
[351965237,1738863057504,-845.98,0.00017532,2]
[351965238,1738863057514,-500.0,0.00017532,2]
[351965239,1738863057524,-500.0,0.00017532,2]
[351965240,1738863057534,-500.0,0.00017532,2]
[351965241,1738863057543,-500.0,0.00017532,2]
[351965242,1738863057553,-426.43233896,0.00017532,2]
[351965243,1738863057563,-1230.77,0.00017532,2]
[351965244,1738863057573,-500.0,0.00017532,2]
[351965245,1738863057584,-1006.41,0.00017532,2]
[351965246,1738863057594,-500.0,0.00017532,2]
[351965247,1738863057604,-862.91,0.00017532,2]
[351965248,1738863057616,-1956.47,0.00017532,2]
[351965249,1738863057626,-570.11,0.00017534,2]
[351965250,1738863057637,-1180.69,0.00017534,2]
[351965251,1738863057648,-2149.42,0.00017534,2]
[351965252,1738863057659,-1059.65,0.00017534,2]
[351965253,1738863057671,-1383.56,0.00017534,2]
[351965254,1738863057681,-823.5,0.00017534,2]
[351965255,1738863057692,-2226.58,0.00017534,2]
[351965256,1738863057702,-1753.94,0.00017534,2]
[351965257,1738863057712,-515.21,0.00017534,2]
[351965258,1738863057722,-2190.35,0.00017534,2]
[351965259,1738863057734,-1190.0,0.00017534,2]
[351965260,1738863057750,-870.35,0.00017534,2]
[351965261,1738863057760,-1937.56,0.00017534,2]
[351965262,1738863057773,-1388.09,0.00017534,2]
[351965263,1738863057947,-2143.77,0.00017534,2]
[351965264,1738863057956,-1380.13,0.00017534,2]
[351965265,1738863057966,-1318.29,0.00017534,2]
[351965266,1738863057975,-1081.89,0.00017534,2]
[351965267,1738863057984,-2558.15,0.00017534,2]
[351965268,1738863057994,-1102.0,0.00017534,2]
[351965269,1738863058003,-500.0,0.00017534,2]
[351965270,1738863058012,-500.0,0.00017534,2]
[351965271,1738863058022,-532.74,0.00017534,2]
[351965272,1738863058031,-538.46,0.00017534,2]
[351965273,1738863058041,-649.28,0.00017534,2]
[351965274,1738863058051,-1893.91,0.000176,2]
[351965275,1738863058061,-150.0,0.00017616,2]
[351965276,1738863058071,-438.62,0.00017616,2]
[351965277,1738863058080,-300.0,0.00017616,2]
[351965278,1738863058090,-150.0,0.00017616,2]
[351965279,1738863058099,-438.62,0.00017616,2]
[351965280,1738863058108,-500.0,0.00017667,2]
[351965281,1738863058118,-500.0,0.00017667,2]
[351965282,1738863058127,-500.0,0.00017667,2]
[351965283,1738863058137,-500.0,0.00017667,2]
[351965284,1738863058146,-500.0,0.00017667,2]
[351965285,1738863058155,-500.0,0.00017667,2]
[351965286,1738863058164,-500.0,0.00017667,2]
[351965287,1738863058173,-500.0,0.00017667,2]
[351965288,1738863058182,-500.0,0.00017667,2]
[351965289,1738863058192,-500.0,0.00017667,2]
[351965290,1738863058201,-500.0,0.00017667,2]
[351965291,1738863058211,-500.0,0.00017667,2]
[351965292,1738863058220,-500.0,0.00017667,2]
[351965293,1738863058229,-500.0,0.00017667,2]
[351965294,1738863058239,-500.0,0.00017667,2]
[351965295,1738863058248,-500.0,0.00017667,2]
[351965296,1738863058257,-500.0,0.00017667,2]
[351965297,1738863058266,-500.0,0.00017667,2]
[351965298,1738863058275,-500.0,0.00017667,2]
[351965299,1738863058284,-500.0,0.00017667,2]
[351965300,1738863058294,-500.0,0.00017667,2]
[351965301,1738863058303,-500.0,0.00017667,2]
[351965302,1738863058312,-500.0,0.00017667,2]
[351965303,1738863058321,-500.0,0.00017667,2]
[351965304,1738863058330,-500.0,0.00017667,2]
[351965305,1738863058339,-500.0,0.00017667,2]
[351965306,1738863058349,-500.0,0.00017667,2]
[351965307,1738863058358,-500.0,0.00017667,2]
[351965308,1738863058368,-500.0,0.00017667,2]
[351965309,1738863058378,-504.41,0.00017667,2]
[351965310,1738863058387,-500.0,0.00017667,2]
[351965311,1738863058397,-500.0,0.00017667,2]
[351965312,1738863058408,-500.0,0.00017667,2]
[351965313,1738863058418,-713.7,0.00017667,2]
[351965314,1738863058428,-500.0,0.00017667,2]
[351965315,1738863058437,-500.0,0.00017667,2]
[351965316,1738863058447,-500.0,0.00017667,2]
[351965317,1738863058457,-565.59,0.00017667,2]
[351965318,1738863058466,-500.0,0.00017667,2]
[351965319,1738863058474,-500.0,0.00017667,2]
[351965320,1738863058483,-500.0,0.00017667,2]
[351965321,1738863058492,-500.0,0.00017667,2]
[351965322,1738863058502,-534.26214145,0.00017667,2]
[351965323,1738863058511,-500.0,0.00017667,2]
[351965324,1738863058521,-654.86,0.00017667,2]
[351965325,1738863058530,-157.36190615,0.00017667,2]
[351965326,1738863058540,-500.0,0.00017667,2]
[351965327,1738863058551,-829.31,0.00017667,2]
[351965328,1738863058560,-500.0,0.00017667,2]
[351965329,1738863058569,-680.61,0.00017667,2]
[351965330,1738863058578,-500.0,0.00017667,2]
[351965331,1738863058587,-500.0,0.00017667,2]
[351965332,1738863058596,-500.0,0.00017667,2]
[351965333,1738863058605,-500.0,0.00017667,2]
[351965334,1738863058615,-500.0,0.00017667,2]
[351965335,1738863058624,-500.0,0.00017667,2]
[351965336,1738863058633,-777.57,0.00017667,2]
[351965337,1738863058643,-500.0,0.00017667,2]
[351965338,1738863058655,-500.0,0.00017667,2]
[351965339,1738863058665,-547.02,0.00017667,2]
[351965340,1738863058675,-539.78,0.00017667,2]
[351965341,1738863058684,-500.0,0.00017667,2]
[351965342,1738863058696,-859.53,0.00017667,2]
[351965343,1738863058705,-500.0,0.00017667,2]
[351965344,1738863058715,-500.0,0.00017667,2]
[351965345,1738863058727,-500.0,0.00017667,2]
[351965346,1738863058737,-558.78,0.00017667,2]
[351965347,1738863058747,-500.0,0.00017667,2]
[351965348,1738863058756,-769.27,0.00017667,2]
[351965349,1738863058766,-872.32,0.00017667,2]
[351965350,1738863058775,-899.31,0.00017667,2]
[351965351,1738863058785,-500.0,0.00017667,2]
[351965352,1738863058794,-1378.07,0.00017667,2]
[351965353,1738863058805,-1185.73,0.00017667,2]
[351965354,1738863058814,-1028.89,0.00017667,2]
[351965355,1738863058824,-523.27,0.00017667,2]
[351965356,1738863058833,-1129.64,0.00017667,2]
[351965357,1738863058843,-500.0,0.00017667,2]
[351965358,1738863058853,-1020.65,0.00017667,2]
[351965359,1738863058862,-500.0,0.00017667,2]
[351965360,1738863058874,-2327.83,0.00017667,2]
[351965361,1738863058884,-500.0,0.00017667,2]
[351965362,1738863058894,-500.0,0.00017667,2]
[351965363,1738863058904,-1130.75,0.00017667,2]
[351965364,1738863058914,-500.0,0.00017667,2]
[351965365,1738863058923,-842.09,0.00017667,2]
[351965366,1738863058933,-1203.95,0.00017667,2]
[351965367,1738863058943,-500.0,0.00017667,2]
[351965368,1738863058953,-500.0,0.00017667,2]
[351965369,1738863058963,-856.65,0.00017667,2]
[351965370,1738863058972,-500.0,0.00017667,2]
[351965371,1738863058982,-1046.89,0.00017667,2]
[351965372,1738863058991,-500.0,0.00017667,2]
[351965373,1738863059001,-500.0,0.00017667,2]
[351965374,1738863059011,-500.0,0.00017667,2]
[351965375,1738863059020,-500.0,0.00017667,2]
[351965376,1738863059029,-300.0,0.00017667,2]
[351965377,1738863059039,-923.35,0.00017667,2]
[351965378,1738863059048,-1215.8,0.00017667,2]
[351965379,1738863059058,-500.0,0.00017667,2]
[351965380,1738863059067,-500.0,0.00017667,2]
[351965381,1738863059076,-500.0,0.00017667,2]
[351965382,1738863059088,-818.55,0.00017667,2]
[351965383,1738863059100,-500.0,0.00017667,2]
[351965384,1738863059110,-500.0,0.00017668,2]
[351965385,1738863059122,-500.0,0.00017668,2]
[351965386,1738863059131,-500.0,0.00017668,2]
[351965387,1738863059140,-500.0,0.00017668,2]
[351965388,1738863059149,-500.0,0.00017668,2]
[351965389,1738863059159,-500.0,0.00017668,2]
[351965390,1738863059168,-500.0,0.00017668,2]
[351965391,1738863059178,-243.35148762,0.00017668,2]
[351965392,1738863059187,-600.09,0.00017668,2]
[351965393,1738863059198,-500.0,0.00017668,2]
[351965394,1738863059208,-633.96,0.00017668,2]
[351965395,1738863059217,-500.0,0.00017668,2]
[351965396,1738863059227,-500.0,0.00017668,2]
[351965397,1738863059237,-500.0,0.00017668,2]
[351965398,1738863059246,-500.0,0.00017668,2]
[351965399,1738863059255,-500.0,0.00017668,2]
[351965400,1738863059265,-500.0,0.00017668,2]
[351965401,1738863059275,-526.53,0.00017668,2]
[351965402,1738863059286,-500.0,0.00017668,2]
[351965403,1738863059298,-512.89,0.00017668,2]
[351965404,1738863059320,-500.0,0.00017668,2]
[351965405,1738863059340,-500.0,0.00017668,2]
[351965406,1738863059349,-500.0,0.00017668,2]
[351965407,1738863059359,-500.0,0.00017668,2]